[Event "*** SCC Grand Prix: Titled Tuesday Blitz"]
[Site "Chess.com"]
[Date "2020.10.06"]
[Round "10"]
[White "tlomigtlis"]
[Black "kasparicy"]
[Result "0-1"]
[WhiteElo "2477"]
[BlackElo "2389"]
[TimeControl "180+1"]
[EndTime "11:56:14 PDT"]
[Termination "kasparicy won by checkmate"]

1. d4 {[%clk 0:03:00.9]} 1... f5 {[%clk 0:02:58.1]} 2. c4 {[%clk 0:03:01.1]}
2... e6 {[%clk 0:02:58]} 3. Nc3 {[%clk 0:03:01.1]} 3... Nf6 {[%clk 0:02:58.4]}
4. g3 {[%clk 0:03:01]} 4... Bd6 {[%clk 0:02:56.4]} 5. Bg2 {[%clk 0:02:59.9]}
5... Be7 {[%clk 0:02:56.8]} 6. Nf3 {[%clk 0:02:59.7]} 6... d6 {[%clk 0:02:57.4]}
7. O-O {[%clk 0:02:59.7]} 7... O-O {[%clk 0:02:57.9]} 8. Bf4 {[%clk 0:02:59.1]}
8... Ne4 {[%clk 0:02:56.8]} 9. Qc2 {[%clk 0:02:58.6]} 9... Nxc3 {[%clk
0:02:56.1]} 10. bxc3 {[%clk 0:02:59]} 10... Nc6 {[%clk 0:02:55.5]} 11. Rab1
{[%clk 0:02:56.3]} 11... Bf6 {[%clk 0:02:56]} 12. Rfe1 {[%clk 0:02:54.2]} 12...
e5 {[%clk 0:02:56.2]} 13. Be3 {[%clk 0:02:52.8]} 13... f4 {[%clk 0:02:51.8]} 14.
gxf4 {[%clk 0:02:46.4]} 14... exf4 {[%clk 0:02:52.7]} 15. Bxf4 {[%clk
0:02:47.1]} 15... Bxd4 {[%clk 0:02:52.7]} 16. cxd4 {[%clk 0:02:36.6]} 16... Rxf4
{[%clk 0:02:51.1]} 17. e3 {[%clk 0:02:33.3]} 17... Rg4 {[%clk 0:02:20.5]} 18.
Kh1 {[%clk 0:02:23.6]} 18... Qf6 {[%clk 0:02:18.4]} 19. Rg1 {[%clk 0:02:14]}
19... Bf5 {[%clk 0:02:09.9]} 20. Qb3 {[%clk 0:02:13.2]} 20... Bxb1 {[%clk
0:02:03.1]} 21. Qxb7 {[%clk 0:02:11.3]} 21... Rf8 {[%clk 0:01:58.7]} 22. Qxb1
{[%clk 0:01:59.1]} 22... Rxg2 {[%clk 0:01:55.3]} 23. Rxg2 {[%clk 0:01:57.9]}
23... Qxf3 {[%clk 0:01:54.7]} 24. Qb7 {[%clk 0:01:58.2]} 24... Nxd4 {[%clk
0:01:43.5]} 25. Qxc7 {[%clk 0:01:56.8]} 25... Nf5 {[%clk 0:01:32]} 26. Qxa7
{[%clk 0:01:47.7]} 26... g6 {[%clk 0:01:30.2]} 27. Qd7 {[%clk 0:01:33.1]} 27...
Nh4 {[%clk 0:01:16.2]} 28. Qe6+ {[%clk 0:01:33.1]} 28... Rf7 {[%clk 0:01:16.4]}
29. Qg4 {[%clk 0:01:06.2]} 29... Qxg2+ {[%clk 0:01:14.7]} 30. Qxg2 {[%clk
0:01:06.4]} 30... Nxg2 {[%clk 0:01:15.6]} 31. Kxg2 {[%clk 0:01:07.2]} 31... Ra7
{[%clk 0:01:16.1]} 32. Kf3 {[%clk 0:01:07.3]} 32... Rxa2 {[%clk 0:01:16.9]} 33.
Ke4 {[%clk 0:01:08.2]} 33... Rxf2 {[%clk 0:01:16.7]} 34. Kd5 {[%clk 0:01:09.1]}
34... Rxh2 {[%clk 0:01:17]} 35. e4 {[%clk 0:01:10]} 35... Kf7 {[%clk 0:01:16.5]}
36. Kxd6 {[%clk 0:01:10.9]} 36... h5 {[%clk 0:01:16.5]} 37. e5 {[%clk
0:01:11.8]} 37... Ke8 {[%clk 0:01:16.7]} 38. e6 {[%clk 0:01:12.7]} 38... Rc2
{[%clk 0:01:15.3]} 39. c5 {[%clk 0:01:13.6]} 39... h4 {[%clk 0:01:15.3]} 40. c6
{[%clk 0:01:14.5]} 40... h3 {[%clk 0:01:15.7]} 41. c7 {[%clk 0:01:15.3]} 41...
Rxc7 {[%clk 0:01:15.6]} 42. Kxc7 {[%clk 0:01:15.2]} 42... h2 {[%clk 0:01:16.2]}
43. Kc6 {[%clk 0:01:16.1]} 43... h1=Q+ {[%clk 0:01:16]} 44. Kc7 {[%clk 0:01:17]}
44... Qe4 {[%clk 0:01:16.2]} 45. e7 {[%clk 0:01:17.9]} 45... Qe6 {[%clk
0:01:15.4]} 46. Kb8 {[%clk 0:01:17.2]} 46... g5 {[%clk 0:01:16.3]} 47. Kc7
{[%clk 0:01:18.1]} 47... g4 {[%clk 0:01:16.8]} 48. Kb8 {[%clk 0:01:18.7]} 48...
g3 {[%clk 0:01:17.7]} 49. Kc7 {[%clk 0:01:19.6]} 49... g2 {[%clk 0:01:18.4]} 50.
Kb8 {[%clk 0:01:20.5]} 50... g1=Q {[%clk 0:01:16.6]} 51. Kb7 {[%clk 0:01:20.8]}
51... Qgb6+ {[%clk 0:01:16.3]} 52. Ka8 {[%clk 0:01:21.7]} 52... Qa6+ {[%clk
0:01:13.1]} 53. Kb8 {[%clk 0:01:21.2]} 53... Qec8# {[%clk 0:01:13.7]} 0-1

[Event "*** SCC Grand Prix: Titled Tuesday Blitz"]
[Site "Chess.com"]
[Date "2020.10.06"]
[Round "10"]
[White "draksbg"]
[Black "esrosenberg"]
[Result "0-1"]
[WhiteElo "2530"]
[BlackElo "2296"]
[TimeControl "180+1"]
[EndTime "11:56:15 PDT"]
[Termination "esrosenberg won by resignation"]

1. e4 {[%clk 0:02:30.3]} 1... e5 {[%clk 0:02:52.4]} 2. Nf3 {[%clk 0:02:30.5]}
2... Nc6 {[%clk 0:02:52.6]} 3. Bc4 {[%clk 0:02:30]} 3... Nf6 {[%clk 0:02:52.3]}
4. d3 {[%clk 0:02:28.5]} 4... Bc5 {[%clk 0:02:52.2]} 5. O-O {[%clk 0:02:27.1]}
5... a6 {[%clk 0:02:48.3]} 6. c3 {[%clk 0:02:26.1]} 6... Ba7 {[%clk 0:02:48]} 7.
a4 {[%clk 0:02:22.8]} 7... d6 {[%clk 0:02:48]} 8. h3 {[%clk 0:02:19.5]} 8... h6
{[%clk 0:02:47.4]} 9. b4 {[%clk 0:02:08.1]} 9... O-O {[%clk 0:02:45.9]} 10. Re1
{[%clk 0:02:05.2]} 10... Re8 {[%clk 0:02:45.3]} 11. Bb3 {[%clk 0:02:04.7]} 11...
Be6 {[%clk 0:02:26.8]} 12. Nbd2 {[%clk 0:02:04.3]} 12... d5 {[%clk 0:02:19.3]}
13. Bc2 {[%clk 0:02:00.4]} 13... d4 {[%clk 0:02:15.8]} 14. b5 {[%clk 0:01:58.7]}
14... dxc3 {[%clk 0:02:13.6]} 15. Nb1 {[%clk 0:01:57.7]} 15... axb5 {[%clk
0:02:12.1]} 16. axb5 {[%clk 0:01:57.6]} 16... Nd4 {[%clk 0:01:44.7]} 17. Nxc3
{[%clk 0:01:53.5]} 17... Nxf3+ {[%clk 0:01:22.5]} 18. Qxf3 {[%clk 0:01:52.3]}
18... Bxf2+ {[%clk 0:01:08.2]} 19. Qxf2 {[%clk 0:01:53.2]} 19... Rxa1 {[%clk
0:01:08.2]} 20. Be3 {[%clk 0:01:52.9]} 20... Rxe1+ {[%clk 0:01:06.8]} 21. Qxe1
{[%clk 0:01:53.8]} 21... Nh5 {[%clk 0:00:59.2]} 22. Ne2 {[%clk 0:01:47.8]} 22...
Qe7 {[%clk 0:00:26.9]} 23. g4 {[%clk 0:01:47.3]} 23... Nf4 {[%clk 0:00:19.3]}
24. Nxf4 {[%clk 0:01:47.4]} 24... exf4 {[%clk 0:00:19.6]} 25. Bxf4 {[%clk
0:01:48.3]} 25... Qc5+ {[%clk 0:00:20]} 26. Qf2 {[%clk 0:01:49.1]} 26... Qxb5
{[%clk 0:00:19.2]} 27. d4 {[%clk 0:01:47.9]} 27... Bc4 {[%clk 0:00:16.5]} 28. d5
{[%clk 0:01:47.8]} 28... Bd3 {[%clk 0:00:16.6]} 29. Bd1 {[%clk 0:01:47.7]} 29...
Bxe4 {[%clk 0:00:16.1]} 30. Kh2 {[%clk 0:01:40.6]} 30... Qxd5 {[%clk 0:00:15.6]}
31. h4 {[%clk 0:01:38.5]} 31... Qxd1 {[%clk 0:00:15.5]} 0-1

[Event "*** SCC Grand Prix: Titled Tuesday Blitz"]
[Site "Chess.com"]
[Date "2020.10.06"]
[Round "10"]
[White "parnali1611"]
[Black "juancruzarias"]
[Result "0-1"]
[WhiteElo "2163"]
[BlackElo "2510"]
[TimeControl "180+1"]
[EndTime "11:56:26 PDT"]
[Termination "juancruzarias won on time"]

1. d4 {[%clk 0:03:00.9]} 1... Nf6 {[%clk 0:02:59.9]} 2. c4 {[%clk 0:02:59.9]}
2... c5 {[%clk 0:03:00.2]} 3. d5 {[%clk 0:02:57.7]} 3... e5 {[%clk 0:03:00.9]}
4. Nc3 {[%clk 0:02:56.9]} 4... d6 {[%clk 0:03:01.3]} 5. e4 {[%clk 0:02:55.7]}
5... Be7 {[%clk 0:03:01.2]} 6. f4 {[%clk 0:02:55.7]} 6... exf4 {[%clk
0:02:59.6]} 7. Nf3 {[%clk 0:02:54.8]} 7... Nbd7 {[%clk 0:02:59.8]} 8. Bxf4
{[%clk 0:02:54.5]} 8... O-O {[%clk 0:03:00.4]} 9. Bd3 {[%clk 0:02:53.2]} 9...
Ng4 {[%clk 0:03:00.3]} 10. O-O {[%clk 0:02:10.9]} 10... Re8 {[%clk 0:02:53.9]}
11. e5 {[%clk 0:01:30.5]} 11... dxe5 {[%clk 0:02:46.3]} 12. Bd2 {[%clk
0:01:09.8]} 12... g6 {[%clk 0:02:24.3]} 13. d6 {[%clk 0:00:44.6]} 13... Bxd6
{[%clk 0:02:19.6]} 14. Ng5 {[%clk 0:00:42.5]} 14... f5 {[%clk 0:01:51.6]} 15.
Bxf5 {[%clk 0:00:11.5]} 15... gxf5 {[%clk 0:01:46]} 16. Rxf5 {[%clk 0:00:10.2]}
16... Ndf6 {[%clk 0:01:46.5]} 17. Rf1 {[%clk 0:00:05.2]} 17... e4 {[%clk
0:01:42.2]} 18. h3 {[%clk 0:00:05.2]} 18... e3 {[%clk 0:01:38.5]} 19. Be1 {[%clk
0:00:03.6]} 19... Bh2+ {[%clk 0:01:37.6]} 20. Kh1 {[%clk 0:00:03.5]} 20... Qxd1
{[%clk 0:01:38.1]} 21. Rxd1 {[%clk 0:00:02.9]} 21... e2 {[%clk 0:01:37.3]} 22.
Nxe2 {[%clk 0:00:03.3]} 22... Rxe2 {[%clk 0:01:37.5]} 23. hxg4 {[%clk
0:00:03.5]} 23... Be5 {[%clk 0:01:29.3]} 24. Rd8+ {[%clk 0:00:03]} 24... Kg7
{[%clk 0:01:29.7]} 25. Ne6+ {[%clk 0:00:02.3]} 25... Bxe6 {[%clk 0:01:29.4]} 26.
Rxa8 {[%clk 0:00:02.2]} 26... Bxc4 {[%clk 0:01:29.5]} 0-1

[Event "*** SCC Grand Prix: Titled Tuesday Blitz"]
[Site "Chess.com"]
[Date "2020.10.06"]
[Round "10"]
[White "ZverevLev"]
[Black "pavelalexandru07"]
[Result "0-1"]
[WhiteElo "2322"]
[BlackElo "2247"]
[TimeControl "180+1"]
[EndTime "11:56:35 PDT"]
[Termination "pavelalexandru07 won by resignation"]

1. Nf3 {[%clk 0:03:00.9]} 1... g6 {[%clk 0:02:59.4]} 2. c4 {[%clk 0:03:01.8]}
2... Bg7 {[%clk 0:02:59.8]} 3. d4 {[%clk 0:03:01.2]} 3... Nf6 {[%clk 0:02:59.1]}
4. Nc3 {[%clk 0:03:00.4]} 4... O-O {[%clk 0:02:59.2]} 5. e4 {[%clk 0:02:58.4]}
5... d6 {[%clk 0:02:59.7]} 6. Bd3 {[%clk 0:02:57.7]} 6... c5 {[%clk 0:03:00.1]}
7. d5 {[%clk 0:02:56.8]} 7... e6 {[%clk 0:02:59.9]} 8. Bf4 {[%clk 0:02:53.5]}
8... exd5 {[%clk 0:02:57.7]} 9. cxd5 {[%clk 0:02:52.4]} 9... Re8 {[%clk
0:02:53]} 10. Qd2 {[%clk 0:02:51.1]} 10... c4 {[%clk 0:02:52.6]} 11. Bc2 {[%clk
0:02:49.7]} 11... Na6 {[%clk 0:02:52.5]} 12. O-O-O {[%clk 0:02:48.7]} 12... Nc5
{[%clk 0:02:51.9]} 13. Rhe1 {[%clk 0:02:47.6]} 13... b5 {[%clk 0:02:18.3]} 14.
e5 {[%clk 0:02:40.8]} 14... b4 {[%clk 0:01:37.3]} 15. exf6 {[%clk 0:02:35.7]}
15... Rxe1 {[%clk 0:01:13.2]} 16. Rxe1 {[%clk 0:02:31.9]} 16... bxc3 {[%clk
0:01:12.4]} 17. Qxc3 {[%clk 0:02:18.9]} 17... Bxf6 {[%clk 0:01:11.1]} 18. Qe3
{[%clk 0:02:05.8]} 18... Bb7 {[%clk 0:00:46.9]} 19. Qd2 {[%clk 0:01:55.1]} 19...
Qb6 {[%clk 0:00:39.3]} 20. Bb1 {[%clk 0:01:45.5]} 20... Rc8 {[%clk 0:00:37.5]}
21. Bh6 {[%clk 0:01:31.4]} 21... Nd3+ {[%clk 0:00:37]} 22. Bxd3 {[%clk 0:01:31]}
22... cxd3+ {[%clk 0:00:37]} 23. Kb1 {[%clk 0:01:31.4]} 23... Bxd5 {[%clk
0:00:37.5]} 24. Ng5 {[%clk 0:01:18.8]} 24... Qa6 {[%clk 0:00:26.5]} 25. a3
{[%clk 0:01:10.5]} 25... Qc4 {[%clk 0:00:24.9]} 0-1

[Event "*** SCC Grand Prix: Titled Tuesday Blitz"]
[Site "Chess.com"]
[Date "2020.10.06"]
[Round "10"]
[White "Ze-Pequeno"]
[Black "lacafi"]
[Result "0-1"]
[WhiteElo "2228"]
[BlackElo "2112"]
[TimeControl "180+1"]
[EndTime "11:56:35 PDT"]
[Termination "lacafi won by resignation"]

1. e4 {[%clk 0:02:56.7]} 1... c6 {[%clk 0:02:56.8]} 2. d4 {[%clk 0:02:56.4]}
2... d5 {[%clk 0:02:57.7]} 3. Nc3 {[%clk 0:02:56.5]} 3... dxe4 {[%clk
0:02:58.6]} 4. Nxe4 {[%clk 0:02:56.7]} 4... Nf6 {[%clk 0:02:59.5]} 5. Nxf6+
{[%clk 0:02:57.2]} 5... exf6 {[%clk 0:03:00.4]} 6. c3 {[%clk 0:02:57.7]} 6...
Bd6 {[%clk 0:03:00.3]} 7. Bd3 {[%clk 0:02:58.6]} 7... O-O {[%clk 0:03:00.6]} 8.
Qc2 {[%clk 0:02:59.5]} 8... h5 {[%clk 0:03:00.5]} 9. Ne2 {[%clk 0:03:00.4]} 9...
Re8 {[%clk 0:03:00]} 10. O-O {[%clk 0:02:59.1]} 10... h4 {[%clk 0:02:59.8]} 11.
h3 {[%clk 0:02:59.3]} 11... Nd7 {[%clk 0:03:00.4]} 12. Bf4 {[%clk 0:02:58.7]}
12... Nf8 {[%clk 0:03:00]} 13. Bxd6 {[%clk 0:02:58]} 13... Qxd6 {[%clk 0:03:00]}
14. Rfe1 {[%clk 0:02:58.9]} 14... Bd7 {[%clk 0:02:42.9]} 15. Qd2 {[%clk
0:02:55.8]} 15... Ne6 {[%clk 0:02:42.2]} 16. Bc4 {[%clk 0:02:50.5]} 16... Rad8
{[%clk 0:02:18.1]} 17. Rad1 {[%clk 0:02:48.3]} 17... Bc8 {[%clk 0:02:15]} 18.
Qc1 {[%clk 0:02:46.4]} 18... Qc7 {[%clk 0:02:10.6]} 19. Bb3 {[%clk 0:02:44.5]}
19... b6 {[%clk 0:02:06.5]} 20. a3 {[%clk 0:02:40.2]} 20... Ba6 {[%clk
0:01:53.8]} 21. Bc2 {[%clk 0:02:26.9]} 21... Re7 {[%clk 0:01:12.6]} 22. Bd3
{[%clk 0:02:16.7]} 22... Bxd3 {[%clk 0:01:06.5]} 23. Rxd3 {[%clk 0:02:16.2]}
23... Rde8 {[%clk 0:01:07.4]} 24. Re3 {[%clk 0:02:15.8]} 24... Ng5 {[%clk
0:01:01.9]} 25. Rxe7 {[%clk 0:02:02.9]} 25... Qxe7 {[%clk 0:01:02.8]} 26. Kf1
{[%clk 0:02:02.2]} 26... Qe6 {[%clk 0:00:47.8]} 27. c4 {[%clk 0:01:30.9]} 27...
Nxh3 {[%clk 0:00:27.4]} 28. gxh3 {[%clk 0:01:06.8]} 28... Qxh3+ {[%clk
0:00:28.3]} 29. Kg1 {[%clk 0:01:07.3]} 29... Re4 {[%clk 0:00:28.2]} 30. f3
{[%clk 0:00:56.9]} 0-1

[Event "*** SCC Grand Prix: Titled Tuesday Blitz"]
[Site "Chess.com"]
[Date "2020.10.06"]
[Round "10"]
[White "Indianlad"]
[Black "ftorodent"]
[Result "0-1"]
[WhiteElo "2905"]
[BlackElo "2693"]
[TimeControl "180+1"]
[EndTime "11:56:48 PDT"]
[Termination "ftorodent won by checkmate"]

1. Nf3 {[%clk 0:03:00.9]} 1... d5 {[%clk 0:02:59.5]} 2. b3 {[%clk 0:02:59.5]}
2... Nf6 {[%clk 0:02:58.2]} 3. Bb2 {[%clk 0:02:59.6]} 3... c6 {[%clk 0:02:58.5]}
4. h3 {[%clk 0:02:58.8]} 4... h6 {[%clk 0:02:56.6]} 5. g4 {[%clk 0:02:58.1]}
5... e6 {[%clk 0:02:46.9]} 6. d3 {[%clk 0:02:58.1]} 6... Bd6 {[%clk 0:02:45.3]}
7. Nbd2 {[%clk 0:02:58.4]} 7... Nbd7 {[%clk 0:02:43.2]} 8. e3 {[%clk 0:02:58.5]}
8... e5 {[%clk 0:02:42.9]} 9. Rg1 {[%clk 0:02:58.6]} 9... Qe7 {[%clk 0:02:41.3]}
10. a3 {[%clk 0:02:56.3]} 10... Nf8 {[%clk 0:02:26.6]} 11. Qe2 {[%clk
0:02:48.7]} 11... Ng6 {[%clk 0:02:24.5]} 12. Bg2 {[%clk 0:02:47.3]} 12... Bd7
{[%clk 0:02:21.7]} 13. c4 {[%clk 0:02:46.2]} 13... O-O {[%clk 0:02:12.5]} 14.
Bh1 {[%clk 0:02:40.3]} 14... e4 {[%clk 0:01:56.2]} 15. dxe4 {[%clk 0:02:38.1]}
15... Nxe4 {[%clk 0:01:56.2]} 16. Nd4 {[%clk 0:02:31.8]} 16... Nxd2 {[%clk
0:01:36.7]} 17. Qxd2 {[%clk 0:02:31.7]} 17... dxc4 {[%clk 0:01:36.2]} 18. bxc4
{[%clk 0:01:48.8]} 18... Rad8 {[%clk 0:01:35]} 19. Qc2 {[%clk 0:01:42.2]} 19...
c5 {[%clk 0:01:23.1]} 20. Nf5 {[%clk 0:01:41]} 20... Bxf5 {[%clk 0:01:22.9]} 21.
gxf5 {[%clk 0:01:41.9]} 21... Ne5 {[%clk 0:01:23.2]} 22. f4 {[%clk 0:01:40.4]}
22... Nf3+ {[%clk 0:01:11.8]} 23. Kf2 {[%clk 0:01:30.4]} 23... Nxg1 {[%clk
0:01:03.5]} 24. f6 {[%clk 0:01:30.6]} 24... Nxh3+ {[%clk 0:01:00.8]} 25. Kf3
{[%clk 0:01:30.2]} 25... Qe6 {[%clk 0:00:55.4]} 26. Bg2 {[%clk 0:01:06]} 26...
Rfe8 {[%clk 0:00:55.4]} 27. Re1 {[%clk 0:00:57.5]} 27... Nxf4 {[%clk 0:00:52.8]}
28. Bf1 {[%clk 0:00:57.3]} 28... Ng6 {[%clk 0:00:44.3]} 29. fxg7 {[%clk
0:00:54.7]} 29... Be5 {[%clk 0:00:43.7]} 30. Bc1 {[%clk 0:00:45.4]} 30... Qf6+
{[%clk 0:00:41.4]} 31. Kg2 {[%clk 0:00:45.7]} 31... Qh4 {[%clk 0:00:41.4]} 32.
Re2 {[%clk 0:00:44.8]} 32... Qh2+ {[%clk 0:00:40.3]} 33. Kf3 {[%clk 0:00:45.2]}
33... Qg3+ {[%clk 0:00:39.6]} 34. Ke4 {[%clk 0:00:45]} 34... Qg4# {[%clk
0:00:39.3]} 0-1

[Event "*** SCC Grand Prix: Titled Tuesday Blitz"]
[Site "Chess.com"]
[Date "2020.10.06"]
[Round "10"]
[White "Ranindu2003"]
[Black "korkmaz16"]
[Result "0-1"]
[WhiteElo "2596"]
[BlackElo "2397"]
[TimeControl "180+1"]
[EndTime "11:56:57 PDT"]
[Termination "korkmaz16 won by resignation"]

1. e4 {[%clk 0:03:00.2]} 1... e6 {[%clk 0:02:59.1]} 2. d4 {[%clk 0:02:59.9]}
2... d5 {[%clk 0:02:58.7]} 3. Nd2 {[%clk 0:03:00.5]} 3... Nf6 {[%clk 0:02:57.9]}
4. e5 {[%clk 0:02:59.6]} 4... Nfd7 {[%clk 0:02:58]} 5. Bd3 {[%clk 0:03:00.3]}
5... c5 {[%clk 0:02:58.3]} 6. c3 {[%clk 0:03:01]} 6... Nc6 {[%clk 0:02:58.6]} 7.
Ngf3 {[%clk 0:03:01.7]} 7... Qb6 {[%clk 0:02:54.9]} 8. O-O {[%clk 0:03:01.6]}
8... cxd4 {[%clk 0:02:55.1]} 9. cxd4 {[%clk 0:03:02.5]} 9... Nxd4 {[%clk
0:02:55.4]} 10. Nxd4 {[%clk 0:03:03.4]} 10... Qxd4 {[%clk 0:02:56.1]} 11. Nf3
{[%clk 0:03:04.2]} 11... Qb6 {[%clk 0:02:56.4]} 12. a3 {[%clk 0:03:04.9]} 12...
Nc5 {[%clk 0:02:54]} 13. Bc2 {[%clk 0:03:02.7]} 13... Bd7 {[%clk 0:02:53.8]} 14.
b4 {[%clk 0:02:57.2]} 14... Ne4 {[%clk 0:02:53.6]} 15. Be3 {[%clk 0:02:54.1]}
15... Qd8 {[%clk 0:02:52.5]} 16. Qb1 {[%clk 0:02:42.2]} 16... Nc3 {[%clk
0:02:49.3]} 17. Qb3 {[%clk 0:02:35.2]} 17... Rc8 {[%clk 0:02:46.8]} 18. a4
{[%clk 0:02:30.9]} 18... a6 {[%clk 0:02:45.8]} 19. Bd3 {[%clk 0:02:26]} 19...
Be7 {[%clk 0:02:37.5]} 20. Nd2 {[%clk 0:02:11.6]} 20... b5 {[%clk 0:02:27.1]}
21. a5 {[%clk 0:01:49]} 21... O-O {[%clk 0:02:21.7]} 22. f4 {[%clk 0:01:44.6]}
22... Na4 {[%clk 0:02:11.3]} 23. Bd4 {[%clk 0:01:38.2]} 23... f6 {[%clk
0:01:55.2]} 24. Qd1 {[%clk 0:01:29.8]} 24... f5 {[%clk 0:01:50.9]} 25. Rxa4
{[%clk 0:01:10.9]} 25... bxa4 {[%clk 0:01:49.1]} 26. Bb6 {[%clk 0:01:10.8]}
26... Qe8 {[%clk 0:01:46.8]} 27. Bxa6 {[%clk 0:01:10.8]} 27... Rc3 {[%clk
0:01:38.3]} 28. Qb1 {[%clk 0:00:59.1]} 28... Bb5 {[%clk 0:01:36.6]} 29. Bd4
{[%clk 0:00:45.8]} 29... Rd3 {[%clk 0:01:29.4]} 30. Nf3 {[%clk 0:00:44.8]} 30...
Bxa6 {[%clk 0:01:25.5]} 31. Rc1 {[%clk 0:00:38.4]} 31... Qb5 {[%clk 0:01:21.6]}
32. Rc7 {[%clk 0:00:29.3]} 32... Bxb4 {[%clk 0:01:19.1]} 33. h3 {[%clk
0:00:27.2]} 33... Rxd4 {[%clk 0:01:14.7]} 34. Nxd4 {[%clk 0:00:24.9]} 34... Bc5
{[%clk 0:01:14.7]} 35. Qxb5 {[%clk 0:00:21.4]} 35... Bxd4+ {[%clk 0:01:14.4]}
36. Kh2 {[%clk 0:00:21.5]} 36... Bxb5 {[%clk 0:01:14.7]} 37. Rb7 {[%clk
0:00:20.6]} 37... Bc4 {[%clk 0:01:14.2]} 38. Rb4 {[%clk 0:00:20.8]} 38... a3
{[%clk 0:01:13.6]} 39. Ra4 {[%clk 0:00:21.3]} 39... a2 {[%clk 0:01:13.6]} 40. a6
{[%clk 0:00:21.7]} 40... a1=Q {[%clk 0:01:12.8]} 0-1

[Event "*** SCC Grand Prix: Titled Tuesday Blitz"]
[Site "Chess.com"]
[Date "2020.10.06"]
[Round "10"]
[White "Fins0905"]
[Black "Itk04"]
[Result "1-0"]
[WhiteElo "2649"]
[BlackElo "2476"]
[TimeControl "180+1"]
[EndTime "11:56:59 PDT"]
[Termination "Fins0905 won by checkmate"]

1. e4 {[%clk 0:03:00.9]} 1... e6 {[%clk 0:03:00.2]} 2. d3 {[%clk 0:03:00.3]}
2... d5 {[%clk 0:03:00.8]} 3. Nd2 {[%clk 0:03:00.8]} 3... Nf6 {[%clk 0:03:00.1]}
4. Ngf3 {[%clk 0:03:00.6]} 4... Nc6 {[%clk 0:03:00.3]} 5. c3 {[%clk 0:02:56.3]}
5... e5 {[%clk 0:02:55.1]} 6. Be2 {[%clk 0:02:53]} 6... Be7 {[%clk 0:02:52.7]}
7. O-O {[%clk 0:02:52.9]} 7... O-O {[%clk 0:02:52.9]} 8. b4 {[%clk 0:02:51.8]}
8... a6 {[%clk 0:02:52]} 9. a3 {[%clk 0:02:50.2]} 9... Be6 {[%clk 0:02:44.3]}
10. Re1 {[%clk 0:02:42.3]} 10... b5 {[%clk 0:02:29.7]} 11. Bb2 {[%clk
0:02:41.5]} 11... dxe4 {[%clk 0:01:42.5]} 12. dxe4 {[%clk 0:02:39.4]} 12... h6
{[%clk 0:00:54.1]} 13. c4 {[%clk 0:02:36.5]} 13... bxc4 {[%clk 0:00:29.7]} 14.
Bxc4 {[%clk 0:02:36.3]} 14... Qd6 {[%clk 0:00:15.3]} 15. Qc2 {[%clk 0:02:28.2]}
15... Rfd8 {[%clk 0:00:14.8]} 16. Rac1 {[%clk 0:02:27]} 16... Na7 {[%clk
0:00:01.6]} 17. Bxe5 {[%clk 0:02:24.5]} 17... Qb6 {[%clk 0:00:01.5]} 18. Bxe6
{[%clk 0:02:16.6]} 18... Qxe6 {[%clk 0:00:02.4]} 19. Bxc7 {[%clk 0:01:49]} 19...
Rd7 {[%clk 0:00:02.7]} 20. Be5 {[%clk 0:01:41.2]} 20... Nb5 {[%clk 0:00:03.2]}
21. Bb2 {[%clk 0:01:41]} 21... Rad8 {[%clk 0:00:02.3]} 22. Nb3 {[%clk
0:01:37.6]} 22... Nh5 {[%clk 0:00:02.6]} 23. a4 {[%clk 0:01:20.4]} 23... Na7
{[%clk 0:00:01.8]} 24. Nc5 {[%clk 0:01:19.1]} 24... Bxc5 {[%clk 0:00:02.4]} 25.
Qxc5 {[%clk 0:01:16.9]} 25... Nf4 {[%clk 0:00:03.3]} 26. h3 {[%clk 0:00:53.9]}
26... Rd3 {[%clk 0:00:02.5]} 27. Qe5 {[%clk 0:00:46.5]} 27... Rxf3 {[%clk
0:00:02.3]} 28. Qxg7# {[%clk 0:00:46.1]} 1-0

[Event "*** SCC Grand Prix: Titled Tuesday Blitz"]
[Site "Chess.com"]
[Date "2020.10.06"]
[Round "10"]
[White "andrzej"]
[Black "beto-betun"]
[Result "0-1"]
[WhiteElo "2278"]
[BlackElo "2169"]
[TimeControl "180+1"]
[EndTime "11:57:02 PDT"]
[Termination "beto-betun won by resignation"]

1. e4 {[%clk 0:03:00.9]} 1... c5 {[%clk 0:02:59.4]} 2. Nf3 {[%clk 0:03:01.2]}
2... d6 {[%clk 0:02:59.1]} 3. d4 {[%clk 0:03:01.6]} 3... cxd4 {[%clk 0:03:00]}
4. Nxd4 {[%clk 0:03:02.1]} 4... Nf6 {[%clk 0:02:59.2]} 5. Nc3 {[%clk 0:03:02.3]}
5... a6 {[%clk 0:02:58.9]} 6. Be3 {[%clk 0:03:02.3]} 6... e5 {[%clk 0:02:57.3]}
7. Nb3 {[%clk 0:02:59.2]} 7... Be7 {[%clk 0:02:53.6]} 8. f3 {[%clk 0:02:59.1]}
8... Be6 {[%clk 0:02:48.5]} 9. Nd5 {[%clk 0:02:49.7]} 9... Nxd5 {[%clk
0:02:38.8]} 10. exd5 {[%clk 0:02:49.6]} 10... Bf5 {[%clk 0:02:39.5]} 11. Bd3
{[%clk 0:02:48.7]} 11... Bg6 {[%clk 0:02:32.8]} 12. c4 {[%clk 0:02:33]} 12...
Nd7 {[%clk 0:02:28.2]} 13. O-O {[%clk 0:02:31.8]} 13... Rc8 {[%clk 0:02:18.7]}
14. Rc1 {[%clk 0:02:30.9]} 14... Bxd3 {[%clk 0:02:11]} 15. Qxd3 {[%clk
0:02:30.2]} 15... O-O {[%clk 0:02:11.9]} 16. Rfd1 {[%clk 0:02:26.2]} 16... f5
{[%clk 0:02:07.5]} 17. c5 {[%clk 0:02:11.5]} 17... f4 {[%clk 0:01:40.8]} 18.
cxd6 {[%clk 0:01:50.4]} 18... Bxd6 {[%clk 0:01:38.4]} 19. Bf2 {[%clk 0:01:48.9]}
19... Qe7 {[%clk 0:01:36.7]} 20. Kh1 {[%clk 0:01:35.3]} 20... Nf6 {[%clk
0:01:29.9]} 21. Nd2 {[%clk 0:01:25.8]} 21... Rxc1 {[%clk 0:01:28.1]} 22. Rxc1
{[%clk 0:01:25.3]} 22... Qd7 {[%clk 0:01:28.1]} 23. Ne4 {[%clk 0:01:14.5]} 23...
Nxe4 {[%clk 0:01:26.4]} 24. Qxe4 {[%clk 0:01:14.5]} 24... Rc8 {[%clk 0:01:19.6]}
25. Re1 {[%clk 0:00:38.9]} 25... Qc7 {[%clk 0:01:14.2]} 26. g3 {[%clk
0:00:36.9]} 26... Qc2 {[%clk 0:01:10.3]} 27. Re2 {[%clk 0:00:18.3]} 27... Qxe4
{[%clk 0:01:06]} 28. fxe4 {[%clk 0:00:17.1]} 28... f3 {[%clk 0:01:04]} 29. Rd2
{[%clk 0:00:15.7]} 29... Rc1+ {[%clk 0:00:56.6]} 30. Bg1 {[%clk 0:00:14]} 30...
Bc5 {[%clk 0:00:57.1]} 31. h4 {[%clk 0:00:09.2]} 31... Rxg1+ {[%clk 0:00:55.1]}
32. Kh2 {[%clk 0:00:09.1]} 32... f2 {[%clk 0:00:54.5]} 0-1